bitfinex/quotes_SOLUSD_20240624
["timestamp","ask_amount","ask_price","bid_price","bid_amount"]
[1719263775945,16.648,130.26,130.13,51.308]
[1719263775946,16.648,130.26,130.14,26.8928]
[1719263776346,24.325,130.26,130.14,19.2093]
[1719263776544,7.678,130.25,130.12,14.2771]
[1719263776849,45.0,130.24,130.12,14.2771]
[1719263777032,16.648,130.26,130.13,19.2107]
[1719263777235,45.17,130.25,130.13,19.2107]
[1719263777544,52.8479,130.25,130.13,19.2107]
[1719263777751,7.6783,130.24,130.13,19.2107]
[1719263777931,52.6775,130.25,130.13,26.8952]
[1719263778249,0.17,130.24,130.13,19.2107]
[1719263778442,16.648,130.26,130.15,7.6832]
[1719263778755,0.17,130.25,130.15,7.6832]
[1719263778944,0.17,130.25,130.14,7.6839]
[1719263779252,0.17,130.25,130.15,7.6833]
[1719263779550,16.648,130.26,130.15,45.0]
[1719263780053,16.648,130.26,130.15,64.2078]
[1719263780222,16.648,130.26,130.16,7.6827]
[1719263780427,16.648,130.26,130.15,64.2078]
[1719263780645,16.648,130.26,130.18,7.6816]
[1719263781470,0.17,130.25,130.17,19.2048]
[1719263781746,0.17,130.25,130.16,7.6828]
[1719263781937,0.17,130.25,130.17,7.6819]
[1719263782451,16.648,130.26,130.18,64.2028]
[1719263782755,16.648,130.26,130.22,7.6792]
[1719263782932,16.648,130.26,130.25,7.6775]
[1719263783127,16.648,130.26,130.25,52.6775]
[1719263783967,16.648,130.26,130.24,19.1946]
[1719263784333,16.648,130.26,130.24,26.8726]
[1719263784625,6.4534,130.28,130.27,26.8672]
[1719263784832,6.4534,130.28,130.27,126.5272]
[1719263785251,6.4534,130.28,130.27,19.1909]
[1719263785454,6.4534,130.28,130.26,7.6768]
[1719263785755,6.4534,130.28,130.27,7.6763]
[1719263785970,6.4534,130.28,130.26,7.6768]
[1719263786834,6.4534,130.28,130.25,26.8702]
[1719263787043,6.4534,130.28,130.25,19.1928]
[1719263787456,6.8973791,130.32,130.25,26.8698]
[1719263787769,6.8973791,130.32,130.25,19.1928]
[1719263788058,0.8851791,130.32,130.29,7.6749]
[1719263788261,0.8851791,130.32,130.3,45.0]
[1719263788452,0.8851791,130.32,130.27,26.8656]
[1719263789007,0.8851791,130.32,130.23,38.3929]
[1719263789008,0.8851791,130.32,130.26,7.6764]
[1719263789171,0.8851791,130.32,130.25,7.677]
[1719263789338,0.8851791,130.32,130.24,19.1944]
[1719263789339,0.8851791,130.32,130.24,26.8723]
[1719263789540,0.8851791,130.32,130.24,19.1944]
[1719263789840,0.8851791,130.32,130.25,7.677]
[1719263790035,0.8851791,130.32,130.21,42.2978]
[1719263790241,0.8851791,130.32,130.24,7.6781]
[1719263790546,0.8851791,130.32,130.21,22.2176]
[1719263790742,0.8851791,130.32,130.24,7.6779]
[1719263791066,0.8851791,130.32,130.25,7.677]
[1719263791241,0.8851791,130.32,130.25,19.1927]
[1719263791442,0.8851791,130.32,130.26,7.6767]
[1719263791666,0.8851791,130.32,130.27,7.6763]
[1719263792045,0.8851791,130.32,130.28,52.6755]
[1719263792248,0.8851791,130.32,130.28,45.0]
[1719263792565,0.8851791,130.32,130.3,7.6745]
[1719263792753,14.58541013,130.34,130.29,7.675]
[1719263793156,14.58541013,130.34,130.27,19.19]
[1719263793457,14.58541013,130.34,130.24,19.1946]
[1719263793641,14.58541013,130.34,130.27,7.6761]
[1719263794071,14.58541013,130.34,130.26,38.3847]
[1719263794245,14.58541013,130.34,130.3,7.6742]
[1719263794454,14.58541013,130.34,130.19,8.45671331]
[1719263794658,14.58541013,130.34,130.27,7.6762]
[1719263794852,14.58541013,130.34,130.28,45.0]
[1719263795060,14.58541013,130.34,130.27,45.0]
[1719263795357,6.2823,130.36,130.27,52.6761]
[1719263795655,0.17,130.35,130.27,52.6761]
[1719263795852,6.3105107,130.4,130.28,19.188]
[1719263796055,38.22708838,130.43,130.29,45.0]
[1719263796056,3.55708838,130.43,130.29,45.0]
[1719263796268,3.55708838,130.43,130.3,19.1854]
[1719263796580,10.09884388,130.43,130.31,45.0]
[1719263796882,10.09884388,130.43,130.32,19.1821]
[1719263797065,10.09884388,130.43,130.33,45.0]
[1719263797980,10.09884388,130.43,130.33,52.6723]
[1719263798268,10.09884388,130.43,130.34,19.1794]
[1719263798443,0.8851791,130.45,130.36,7.6706]
[1719263799854,0.8851791,130.45,130.37,45.0]
[1719263800178,0.8851791,130.45,130.39,7.6692]
[1719263800354,0.8851791,130.45,130.4,45.0]
[1719263800550,0.8851791,130.45,130.38,26.8435]
[1719263800746,0.8851791,130.45,130.39,45.0]
[1719263801161,0.8851791,130.45,130.35,26.8495]
[1719263801373,100.8851791,130.45,130.31,19.1839]
[1719263801575,7.6684,130.41,130.28,7.6757]
[1719263801761,0.8851791,130.45,130.31,7.6738]
[1719263801965,0.8851791,130.45,130.3,19.1857]
[1719263802152,0.17,130.44,130.32,19.1826]
[1719263802352,7.8364,130.44,130.32,26.856]
[1719263802751,0.17,130.44,130.33,7.6725]
[1719263803281,7.8364,130.44,130.32,26.8559]
[1719263803656,7.8364,130.44,130.32,19.1826]
[1719263803863,7.8364,130.44,130.32,26.8558]
[1719263804070,8.5509791,130.45,130.33,7.6725]
[1719263804270,8.5509791,130.45,130.32,26.8558]
[1719263804271,0.8851791,130.45,130.32,26.8558]
[1719263804583,7.6688,130.4,130.28,7.6757]
[1719263804765,7.6688,130.4,130.25,38.3848]
[1719263804766,7.6682,130.41,130.29,7.6751]
[1719263804954,7.6677,130.42,130.3,26.8597]
[1719263805372,100.0,130.42,130.27,19.1902]
[1719263805671,100.0,130.4,130.21,15.7671]
[1719263805979,125.17,130.41,130.22,7.6792]
[1719263805980,7.6722,130.35,130.22,7.6792]
[1719263806281,7.6728,130.33,130.2,26.8802]
[1719263806456,119.1757,130.38,130.2,26.8802]
[1719263806457,0.17,130.32,130.21,7.6793]
[1719263806655,7.8432,130.33,130.2,26.8802]
[1719263806861,0.17,130.33,130.2,19.1999]
[1719263807075,7.6711,130.36,130.24,7.678]
[1719263807254,0.17,130.34,130.24,7.678]
[1719263807460,7.6711,130.36,130.23,7.6786]
[1719263807656,0.17,130.35,130.19,19.2023]
[1719263807858,100.17,130.35,130.19,19.2023]
[1719263808161,100.17,130.35,130.16,34.67]
[1719263808162,45.0,130.34,130.12,31.3910501]
[1719263808383,7.6747,130.3,130.18,26.8848]
[1719263808684,0.17,130.29,130.18,26.8848]
[1719263808860,0.17,130.29,130.14,26.8927]
[1719263808861,7.6769,130.27,130.14,26.8927]
[1719263809061,34.67,130.32,130.14,19.2088]
[1719263809261,0.17,130.26,130.17,7.6822]
[1719263810072,0.17,130.26,130.16,19.206]
[1719263810381,7.6753,130.29,130.16,19.206]
[1719263810680,0.17,130.28,130.16,19.206]
[1719263810881,0.17,130.28,130.18,7.6815]
[1719263811058,100.0,130.35,130.19,45.0]
[1719263811253,6.29545567,130.35,130.18,19.2032]
[1719263811466,119.1781,130.36,130.19,45.0]
[1719263811664,34.67,130.37,130.2,19.2002]
[1719263811964,106.54650342,130.37,130.21,45.0]
[1719263812165,7.6729,130.33,130.21,52.6794]
[1719263812364,7.6727,130.34,130.22,7.6792]
[1719263812561,7.6729,130.33,130.21,52.6798]
[1719263812864,134.67,130.31,130.1,65.410822]
[1719263813068,7.6781,130.25,130.13,19.2102]
[1719263813365,7.6783,130.24,130.13,19.2102]
[1719263813563,0.17,130.23,130.13,19.2102]
[1719263813871,16.0358,130.3,130.16,15.2318]
[1719263814187,22.1367,130.28,130.16,15.2318]
[1719263814479,7.6764,130.27,130.16,15.2318]
[1719263814659,0.17,130.26,130.16,15.2318]
[1719263814860,7.8469,130.26,130.16,15.2318]
[1719263815172,7.6775,130.25,130.16,15.2318]
[1719263815373,22.1367,130.28,130.16,15.2318]
[1719263815581,7.6771,130.26,130.16,15.2318]
[1719263815765,7.6765,130.27,130.16,15.2318]
[1719263815965,29.8125,130.28,130.16,22.9142]
[1719263816263,22.1367,130.28,130.16,15.2318]
[1719263816457,7.677,130.26,130.16,15.2318]
[1719263816682,7.677,130.26,130.17,45.0]
[1719263816895,7.6798,130.22,130.11,22.0739]
[1719263817062,7.6793,130.22,130.11,22.0739]
[1719263817262,15.1697,130.21,130.11,22.0739]
[1719263817464,0.17,130.2,130.11,29.7595]
[1719263817974,15.1697,130.21,130.12,7.6851]
[1719263818163,21.5628,130.25,130.13,7.6844]
[1719263818368,21.5628,130.25,130.11,41.2874]
[1719263818369,21.5628,130.25,130.14,52.6836]
[1719263818968,21.5628,130.25,130.11,22.0739]
[1719263818969,15.1697,130.24,130.11,22.0739]
[1719263819387,7.6789,130.23,130.11,29.7592]
[1719263819572,15.1697,130.24,130.11,41.2878]
[1719263819776,0.17,130.22,130.13,7.6842]
[1719263820089,15.1697,130.24,130.13,26.8951]
[1719263820296,22.8482,130.24,130.14,45.0]
[1719263820458,15.1697,130.24,130.13,45.0]
[1719263820662,15.1697,130.24,130.15,7.6832]
[1719263820859,15.1697,130.24,130.16,45.0]
[1719263821368,15.1697,130.24,130.15,45.0]
[1719263821568,15.1697,130.24,130.15,52.6833]
[1719263821769,15.1697,130.24,130.15,45.0]
[1719263821980,15.1697,130.24,130.13,7.6844]
[1719263822190,15.1697,130.24,130.14,45.0]
[1719263822687,0.17,130.23,130.14,45.0]
[1719263822886,0.17,130.23,130.11,22.0739]
[1719263823064,7.6824,130.17,130.08,9.12678606]
[1719263823269,7.6821,130.18,130.08,9.12678606]
[1719263823471,0.17,130.17,130.08,9.12678606]
[1719263823877,7.6812,130.19,130.08,9.12678606]
[1719263824189,0.17,130.18,130.08,9.12678606]
[1719263824489,29.1697,130.17,130.08,9.12678606]
[1719263824695,0.17,130.16,130.08,9.12678606]
[1719263824999,0.17,130.16,130.08,16.81418606]
[1719263825785,0.17,130.16,130.08,9.12678606]
[1719263826527,7.6844,130.14,130.08,9.12678606]
[1719263826698,0.17,130.13,130.08,9.12678606]
[1719263826867,20.17,130.13,130.08,9.12678606]
[1719263827068,21.487,130.12,130.08,9.12678606]
[1719263827577,0.17,130.11,130.08,9.12678606]
[1719263828166,7.8559,130.11,130.08,9.12678606]
[1719263828367,0.17,130.11,130.08,9.12678606]
[1719263829787,7.6886,130.07,130.0,10.0]
[1719263829982,7.6888,130.06,130.0,10.0]
[1719263830300,0.17,130.05,130.0,10.0]
[1719263830886,7.6882,130.07,130.0,10.0]
[1719263831073,21.487,130.09,130.0,10.0]
[1719263831274,0.17,130.08,130.0,10.0]
[1719263831476,20.0,130.08,130.0,10.0]
[1719263831680,7.6889,130.06,130.0,10.0]
[1719263831879,7.6888,130.06,130.0,10.0]
[1719263832085,7.8598,130.05,130.0,10.0]
[1719263832401,0.17,130.05,130.0,10.0]
[1719263832891,7.8598,130.05,130.0,10.0]
[1719263833098,0.17,130.05,130.0,10.0]
[1719263834041,35.43177646,130.09,130.0,10.0]
[1719263834295,7.6876,130.08,130.0,10.0]
[1719263834601,7.6889,130.06,130.0,10.0]
[1719263835089,27.74467646,130.09,130.0,10.0]
[1719263835288,7.6899,130.05,130.0,10.0]
[1719263835591,145.0,130.08,130.0,10.0]
[1719263835592,0.17,130.04,130.0,10.0]
[1719263835808,7.6889,130.06,130.0,10.0]
[1719263836093,20.17,130.05,130.0,10.0]
[1719263836299,0.17,130.05,130.0,10.0]
[1719263836789,7.8594,130.05,130.0,10.0]
[1719263836994,0.17,130.05,130.0,10.0]
[1719263837777,7.8594,130.05,130.0,10.0]
[1719263837982,0.17,130.05,130.0,10.0]
[1719263838203,7.8587,130.06,130.0,10.0]
[1719263838384,27.74467646,130.09,130.0,10.0]
[1719263838700,22.8223,130.13,130.0,10.0]
[1719263838886,22.8223,130.13,130.01,19.2287]
[1719263839204,22.8223,130.13,130.0,17.6917]
[1719263839379,7.6857,130.12,130.0,17.6917]
[1719263839779,29.07548207,130.13,130.0,17.6917]
[1719263839979,29.07548207,130.13,130.02,19.2267]
[1719263840207,36.76058207,130.13,130.01,52.6914]
[1719263840379,29.07548207,130.13,130.0,10.0]
[1719263840585,7.687,130.09,130.0,10.0]
[1719263841002,7.6868,130.1,130.0,10.0]
[1719263841308,7.687,130.09,130.0,10.0]
[1719263841490,27.687,130.09,130.0,10.0]
[1719263841689,0.17,130.08,130.0,10.0]
[1719263841915,100.0,130.07,130.0,10.0]
[1719263842198,7.6898,130.05,130.0,10.0]
[1719263842385,7.6904,130.04,130.0,10.0]
[1719263842590,6.7026,130.06,130.0,10.0]
[1719263842591,6.5326,130.06,130.0,10.0]
[1719263842892,7.6893,130.05,130.0,10.0]
[1719263843207,0.17,130.04,130.0,10.0]
[1719263843782,116.0374,130.07,130.0,10.0]
[1719263843783,16.0374,130.07,130.0,10.0]
[1719263844706,7.6892,130.06,130.0,10.0]
[1719263844902,7.6893,130.05,130.0,10.0]
[1719263845287,116.0374,130.07,130.0,10.0]
[1719263845288,0.17,130.04,130.0,10.0]
[1719263845900,20.0,130.06,130.0,10.0]
[1719263846096,0.17,130.05,130.0,10.0]
[1719263846797,107.8595,130.05,130.0,10.0]
[1719263846994,100.17,130.05,130.0,10.0]
[1719263847813,107.6909,130.03,130.0,10.0]
[1719263848195,0.17,130.02,130.0,10.0]
[1719263848697,122.7301,130.01,130.0,3.41000001]
[1719263848902,7.694,129.97,129.89,6.1382]
[1719263849116,100.0,129.99,129.89,6.1382]
[1719263849308,20.17,129.98,129.89,6.1382]
[1719263849812,7.6941,129.97,129.89,6.1382]
[1719263850195,0.17,129.96,129.89,6.1382]
[1719263850589,0.17,129.97,129.89,6.1382]
[1719263850804,7.695,129.96,129.89,6.1382]
[1719263851223,7.6963,129.94,129.85,22.0999]
[1719263851390,106.3032,129.95,129.85,22.0999]
[1719263851587,7.6971,129.92,129.85,22.0999]
[1719263851804,100.0,129.93,129.85,22.0999]
[1719263852094,7.6976,129.91,129.85,22.0999]
[1719263852305,7.6976,129.91,129.82,6.345]
[1719263852623,0.17,129.9,129.82,6.345]
[1719263854231,0.17,129.9,129.82,14.0477]
[1719263855102,0.17,129.9,129.82,6.345]
[1719263855704,7.6994,129.88,129.82,6.345]
[1719263855936,100.0,129.91,129.82,6.345]
[1719263855937,7.7,129.87,129.82,6.345]
[1719263856137,0.17,129.86,129.78,6.5709]
[1719263856325,7.7018,129.84,129.78,6.5709]
[1719263856516,0.17,129.86,129.78,6.5709]
[1719263856517,20.0,129.86,129.78,6.5709]
[1719263856713,0.17,129.85,129.78,6.5709]
[1719263857228,7.7018,129.84,129.78,6.5709]
[1719263857541,27.7007,129.86,129.78,6.5709]
[1719263857712,0.17,129.85,129.78,6.5709]
[1719263858036,7.8712,129.85,129.78,6.5709]
[1719263858212,7.7018,129.84,129.78,6.5709]
[1719263858416,7.7013,129.85,129.78,6.5709]
[1719263858711,0.17,129.84,129.78,6.5709]
[1719263858936,7.7012,129.85,129.78,6.5709]
[1719263859108,0.17,129.84,129.78,6.5709]
[1719263860132,7.8716,129.85,129.78,6.5709]
[1719263861212,7.7018,129.84,129.78,6.5709]
[1719263861412,100.0,129.85,129.74,21.7301]
[1719263861615,7.7036,129.81,129.74,21.7301]
[1719263861924,6.3432,129.82,129.71,21.7301]
[1719263862237,7.7041,129.8,129.69,7.92767046]
[1719263862422,0.17,129.79,129.69,7.7105]
[1719263862629,0.17,129.79,129.68,25.3703]
[1719263862952,7.7036,129.81,129.68,25.3703]
[1719263862953,20.0,129.8,129.69,7.7102]
[1719263863150,0.17,129.79,129.68,25.3703]
[1719263863320,0.17,129.79,129.69,7.7102]
[1719263863514,100.0,129.83,129.69,7.7106]
[1719263863718,7.7037,129.81,129.69,7.7106]
[1719263863917,100.0,129.86,129.7,19.2743]
[1719263864116,7.7027,129.83,129.71,14.2255]
[1719263864336,7.7027,129.83,129.72,7.7088]
[1719263864530,20.0,129.84,129.73,45.0]
[1719263864731,27.7019,129.84,129.73,45.0]
[1719263865111,27.7019,129.84,129.73,52.7083]
[1719263865538,20.0,129.84,129.74,7.7073]
[1719263865723,20.0,129.84,129.75,15.4987]
[1719263865928,120.0,129.84,129.75,15.4987]
[1719263866111,7.7027,129.83,129.75,15.4987]
[1719263866325,20.0,129.82,129.75,15.4987]
[1719263866524,27.7031,129.82,129.75,15.4987]
[1719263866723,20.0,129.82,129.75,15.4987]
[1719263867036,0.17,129.81,129.72,15.4987]
[1719263867214,7.7035,129.81,129.72,15.4987]
[1719263867743,0.17,129.8,129.72,15.4987]
[1719263868129,20.17,129.8,129.72,15.4987]
[1719263868539,6.47077916,129.85,129.72,15.4987]
[1719263868841,6.459,129.88,129.75,19.2669]
[1719263869044,6.459,129.88,129.76,7.7064]
[1719263869239,22.87121835,129.9,129.78,6.3809]
[1719263869537,30.56951835,129.9,129.78,6.3809]
[1719263869743,7.6983,129.9,129.79,45.0]
[1719263870239,6.43025756,129.9,129.78,6.3809]
[1719263870444,123.2044,129.95,129.76,34.67]
[1719263870445,22.1789,129.97,129.82,6.3809]
[1719263870618,22.1789,129.97,129.83,64.2552]
[1719263870827,22.1789,129.97,129.83,19.2552]
[1719263871126,100.0,129.96,129.82,6.3809]
[1719263871566,7.6977,129.91,129.82,6.3809]
[1719263871842,119.2377,129.96,129.82,6.3809]
[1719263872146,100.0,129.94,129.82,6.3809]
[1719263872325,7.6971,129.92,129.82,6.3809]
[1719263872527,0.17,129.91,129.82,6.3809]
[1719263872747,28.4508526,129.97,129.82,6.3809]
[1719263873037,7.6957,129.95,129.83,7.7018]
[1719263873239,7.6952,129.95,129.83,7.7022]
[1719263873441,27.696,129.94,129.82,6.3809]
[1719263873668,27.696,129.94,129.83,45.0]
[1719263873941,20.0,129.94,129.84,15.4987]
[1719263874140,7.6947,129.96,129.86,6.3809]
[1719263874319,20.0,129.95,129.86,6.3809]
[1719263874514,100.0,129.98,129.86,6.3809]
[1719263874747,7.6953,129.95,129.86,6.3809]
[1719263874944,20.0,129.94,129.86,6.3809]
[1719263875325,0.17,129.93,129.86,6.3809]
[1719263876321,27.8665,129.93,129.86,6.3809]
[1719263876527,7.6976,129.91,129.86,6.3809]
[1719263876729,7.6972,129.92,129.86,6.3809]
[1719263876946,100.0,129.94,129.84,15.4987]
[1719263876947,0.17,129.91,129.84,15.4987]
[1719263877452,20.0,129.93,129.84,15.4987]
[1719263877757,7.6977,129.91,129.84,15.4987]
[1719263877935,119.2371,129.96,129.84,15.4987]
[1719263878242,7.6969,129.93,129.84,15.4987]
[1719263878425,27.697,129.92,129.84,15.4987]
[1719263878625,7.6977,129.91,129.84,15.4987]
[1719263879093,27.6971,129.92,129.84,15.4987]
[1719263879219,27.6972,129.92,129.84,15.4987]
[1719263879424,0.17,129.91,129.84,15.4987]
[1719263880349,27.697,129.92,129.84,15.4987]
[1719263880645,0.17,129.91,129.84,15.4987]
[1719263882330,7.8678,129.91,129.84,15.4987]
[1719263882549,0.17,129.91,129.84,15.4987]
[1719263882724,20.0,129.92,129.84,15.4987]
[1719263882934,7.6951,129.96,129.84,15.4987]
[1719263883234,7.6942,129.97,129.84,34.7526]
[1719263883429,20.0,129.96,129.85,7.7011]
[1719263883857,7.6937,129.98,129.87,23.0226]
[1719263884079,7.6924,130.0,129.88,7.6991]
[1719263884238,125.76091227,130.03,129.91,7.6976]
[1719263884239,3.07491227,130.03,129.91,7.6976]
[1719263884433,3.07491227,130.03,129.9,42.2661]
[1719263884664,7.6914,130.02,129.91,45.0]
[1719263884841,7.6914,130.02,129.91,52.6975]
[1719263885037,7.6914,130.02,129.91,45.0]
[1719263885237,10.76551227,130.03,129.91,52.6973]
[1719263885437,7.6912,130.02,129.91,45.0]
[1719263885640,3.07491227,130.03,129.92,7.6969]
[1719263885861,3.07491227,130.03,129.93,6.1399]
[1719263885862,10.76551227,130.03,129.93,6.1399]
[1719263886250,3.07491227,130.03,129.93,6.1399]
[1719263887049,9.30855599,130.03,129.93,6.1399]
[1719263887237,20.0,130.02,129.93,6.1399]
[1719263887637,0.17,130.01,129.93,6.1399]
[1719263887863,145.17,130.01,129.93,6.1399]
[1719263888036,100.17,130.01,129.93,6.1399]
[1719263888234,7.6929,129.99,129.93,6.1399]
[1719263888463,20.0,130.0,129.93,6.1399]
[1719263888672,7.863,129.99,129.93,6.1399]
[1719263888958,0.17,129.99,129.93,6.1399]
[1719263889138,7.6936,129.98,129.93,6.1399]
[1719263889340,7.6946,129.97,129.93,6.1399]
[1719263889568,0.17,129.96,129.93,6.1399]
[1719263889753,9.30855599,130.03,129.93,6.1399]
[1719263889944,16.99905599,130.03,129.93,6.1399]
[1719263890447,7.6911,130.02,129.93,6.1399]
[1719263890845,9.30855599,130.03,129.93,6.1399]
[1719263890846,7.6917,130.01,129.93,6.1399]
[1719263891460,100.0,130.02,129.93,6.1399]
[1719263891680,7.6944,129.97,129.93,6.1399]
[1719263891969,7.6928,130.0,129.93,6.1399]
[1719263892350,27.693,129.99,129.93,6.1399]
[1719263892763,0.17,129.98,129.93,6.1399]
[1719263893671,100.0,129.97,129.9,15.3231]
[1719263893874,7.696,129.94,129.9,15.3231]
[1719263894062,7.8665,129.93,129.9,15.3231]
[1719263894263,7.696,129.94,129.9,15.3231]
[1719263894575,0.17,129.93,129.9,15.3231]
[1719263895573,7.6966,129.93,129.9,15.3231]
[1719263895781,7.866,129.94,129.9,15.3231]
[1719263896149,7.6971,129.92,129.88,6.1694]
[1719263896549,0.17,129.91,129.88,6.1694]
[1719263896956,20.17,129.91,129.88,6.1694]
[1719263897365,27.8677,129.91,129.88,6.1694]
[1719263897550,27.8677,129.91,129.87,15.6354]
[1719263898375,120.17,129.91,129.85,6.0654]
[1719263898563,120.17,129.91,129.83,15.6354]
[1719263898564,7.6994,129.88,129.83,15.6354]
[1719263898879,7.6989,129.89,129.83,15.6354]
[1719263899061,0.17,129.88,129.83,15.6354]
[1719263899261,20.17,129.88,129.83,15.6354]
[1719263899576,100.0,129.87,129.82,6.0654]
[1719263899876,27.7007,129.86,129.82,6.0654]
[1719263900072,0.17,129.85,129.82,6.0654]
[1719263900882,100.17,129.85,129.79,15.6354]
[1719263901079,100.17,129.85,129.78,6.1154]
[1719263901260,7.7032,129.82,129.76,6.2775]
[1719263901466,100.0,129.83,129.76,6.2775]
[1719263901467,107.7024,129.83,129.76,6.2775]
[1719263901682,7.8729,129.82,129.76,6.2775]
[1719263901866,0.17,129.82,129.76,6.2775]
[1719263902561,20.0,129.84,129.76,6.2775]
[1719263902880,19.248,129.89,129.76,6.2775]
[1719263903061,100.0,129.86,129.76,6.2775]
[1719263903268,7.7034,129.82,129.76,6.2775]
[1719263903468,7.7023,129.83,129.76,6.2775]
[1719263903680,100.0,129.86,129.76,6.2775]
[1719263903681,106.6604,129.86,129.76,6.2775]
[1719263903860,7.7016,129.85,129.76,6.2775]
[1719263904189,7.6993,129.89,129.77,16.3709]
[1719263904361,106.50273279,129.91,129.78,6.6066]
[1719263904558,7.6989,129.89,129.78,6.6066]
[1719263904764,100.0,129.89,129.78,6.6066]
[1719263904982,7.7018,129.84,129.78,6.6066]
[1719263905496,7.7007,129.86,129.78,6.6066]
[1719263905668,6.50273279,129.91,129.8,15.888]
[1719263905862,106.6604,129.94,129.8,15.888]
[1719263905863,7.6971,129.92,129.81,51.3744]
[1719263906175,7.697,129.92,129.82,15.888]
[1719263906377,20.0,129.91,129.82,15.888]
[1719263906766,7.6966,129.93,129.82,15.888]
[1719263907162,6.45698838,129.94,129.82,15.888]
[1719263907358,6.45698838,129.94,129.81,6.3744]
[1719263907359,30.83023043,129.97,129.86,6.3744]
[1719263907582,7.6924,130.0,129.89,6.3744]
[1719263907782,7.6918,130.01,129.89,6.3744]
[1719263908182,100.0,130.02,129.89,6.3744]
[1719263908487,7.6915,130.02,129.89,6.3744]
[1719263908673,100.0,130.0,129.89,6.3744]
[1719263908881,100.0,129.98,129.89,6.3744]
[1719263909184,107.6936,129.98,129.89,6.3744]
[1719263909762,107.6928,130.0,129.89,6.3744]
[1719263909996,100.0,130.0,129.89,6.3744]
[1719263910178,100.0,129.98,129.89,6.3744]
[1719263910363,20.0,129.97,129.89,6.3744]
[1719263911193,0.17,129.96,129.89,6.3744]
[1719263914892,7.8646,129.96,129.89,6.3744]
[1719263915063,100.17,129.96,129.89,6.3744]
[1719263915269,100.0,129.94,129.89,6.3744]
[1719263915572,7.6963,129.94,129.89,6.3744]
[1719263915781,20.17,129.93,129.89,6.3744]
[1719263916293,0.17,129.93,129.89,6.3744]
[1719263916465,7.6954,129.95,129.89,6.3744]
[1719263916669,7.8659,129.94,129.89,6.3744]
[1719263916875,20.0,129.93,129.89,6.3744]
[1719263917392,7.693,129.99,129.89,6.3744]
[1719263917770,20.0,129.98,129.89,6.3744]
[1719263918001,27.6936,129.98,129.89,6.3744]
[1719263918196,7.6941,129.97,129.89,6.3744]
[1719263918379,27.6948,129.96,129.89,6.3744]
[1719263918697,0.17,129.95,129.89,6.3744]
[1719263919193,7.6959,129.94,129.89,6.3744]
[1719263919766,0.17,129.93,129.89,6.3744]
[1719263920078,7.6948,129.96,129.89,6.3744]
[1719263920275,7.7,129.87,129.85,6.2855]
[1719263920486,100.0,129.9,129.85,6.2855]
[1719263920712,7.7006,129.86,129.74,37.6076]
[1719263921001,27.7012,129.85,129.74,37.6076]
[1719263921208,129.9,129.92,129.75,19.2663]
[1719263921389,27.6976,129.91,129.79,7.7042]
[1719263921583,0.17,129.9,129.79,7.7042]
[1719263921905,7.8684,129.9,129.77,19.2642]
[1719263922109,7.699,129.89,129.77,26.9701]